fUSD/lending_fUSD_20241125
["ID","MTS","AMOUNT","RATE_DAILY","PERIOD"]
[343265672,1732536664500,-516.76,0.00039726,21]
[343265673,1732536664511,-599.84,0.00039726,21]
[343265674,1732536664522,-500.0,0.00039726,21]
[343265675,1732536664533,-500.0,0.00039726,21]
[343265676,1732536664543,-843.37,0.00039726,21]
[343265677,1732536664553,-897.11,0.00039726,21]
[343265678,1732536664564,-500.0,0.00039726,21]
[343265679,1732536664575,-1516.6,0.00039726,21]
[343265680,1732536664586,-4321.07,0.00039726,21]
[343265681,1732536664597,-500.0,0.00039726,21]
[343265682,1732536664609,-1501.72,0.00039726,21]
[343265683,1732536664619,-500.0,0.00039726,21]
[343265684,1732536664630,-3276.7,0.00039726,21]
[343265685,1732536664640,-21441.79,0.00039726,21]
[343265686,1732536664651,-500.0,0.00039726,21]
[343265687,1732536664661,-500.0,0.00039726,21]
[343265688,1732536664671,-2334.22,0.00039726,21]
[343265689,1732536664682,-521.13,0.00039726,21]
[343265690,1732536664692,-1941.42,0.00039726,21]
[343265691,1732536664702,-231.6,0.00039726,21]
[343265692,1732536664713,-500.0,0.00039726,21]
[343265693,1732536664722,-500.0,0.00039726,21]
[343265694,1732536664733,-513.06,0.00039726,21]
[343265695,1732536664743,-500.0,0.00039726,21]
[343265696,1732536664753,-1034.74,0.00039726,21]
[343265697,1732536664763,-548.14,0.00039726,21]
[343265698,1732536664773,-500.0,0.00039726,21]
[343265699,1732536664783,-1055.46,0.00039726,21]
[343265700,1732536664793,-190.65596399,0.00039748,2]
[343265701,1732536664802,-286.78,0.00039767,21]
[343265702,1732536664812,-500.0,0.00039767,21]
[343265703,1732536664823,-500.0,0.00039767,21]
[343265704,1732536664832,-564.83418554,0.00039767,21]
[343265705,1732536664842,-500.0,0.00039767,21]
[343265706,1732536664852,-500.0,0.00039767,21]
[343265707,1732536664864,-500.0,0.00039767,21]
[343265708,1732536664875,-500.0,0.00039767,21]
[343265709,1732536664884,-500.0,0.00039767,21]
[343265710,1732536664894,-168.05440586,0.00039767,21]
[343265711,1732536664905,-500.0,0.00039767,21]
[343265712,1732536664915,-500.0,0.00039767,21]
[343265713,1732536664925,-500.0,0.00039767,21]
[343265714,1732536664936,-235.54,0.00039767,21]
[343265715,1732536664945,-500.0,0.00039767,21]
[343265716,1732536664955,-494.58,0.00039767,21]
[343265717,1732536664966,-500.0,0.00039767,21]
[343265718,1732536664976,-500.0,0.00039767,21]
[343265719,1732536664987,-430.09,0.00039767,21]
[343265720,1732536664997,-178.52,0.00039767,21]
[343265721,1732536665008,-500.0,0.00039767,21]
[343265722,1732536665019,-500.0,0.00039767,21]
[343265723,1732536665029,-771.52,0.00039767,21]
[343265724,1732536665039,-500.0,0.00039767,21]
[343265725,1732536665049,-500.0,0.00039767,21]
[343265726,1732536665059,-500.0,0.00039767,21]
[343265727,1732536665069,-500.0,0.00039767,21]
[343265728,1732536665080,-500.0,0.00039767,21]
[343265729,1732536665090,-500.0,0.00039767,21]
[343265730,1732536665110,-500.0,0.00039767,21]
[343265731,1732536665122,-299.55,0.00039767,21]
[343265732,1732536665133,-500.0,0.00039767,21]
[343265733,1732536665146,-500.0,0.00039767,21]
[343265734,1732536665158,-500.0,0.00039767,21]
[343265735,1732536665168,-500.0,0.00039767,21]
[343265736,1732536665179,-500.0,0.00039767,21]
[343265737,1732536665190,-500.0,0.00039767,21]
[343265738,1732536665201,-658.45,0.00039767,21]
[343265739,1732536665212,-1976.25,0.00039767,21]
[343265740,1732536665222,-500.0,0.00039767,21]
[343265741,1732536665233,-500.0,0.00039767,21]
[343265742,1732536665243,-500.0,0.00039767,21]
[343265743,1732536665254,-500.0,0.00039767,21]
[343265744,1732536665264,-500.0,0.00039767,21]
[343265745,1732536665275,-876.13,0.00039767,21]
[343265746,1732536665285,-500.0,0.00039767,21]
[343265747,1732536665295,-221.19,0.00039767,21]
[343265748,1732536665305,-514.52,0.00039767,21]
[343265749,1732536665316,-500.0,0.00039767,21]
[343265750,1732536665326,-500.0,0.00039767,21]
[343265751,1732536665336,-500.0,0.00039767,21]
[343265752,1732536665346,-500.0,0.00039767,21]
[343265753,1732536665358,-565.41,0.00039767,21]
[343265754,1732536665369,-500.0,0.00039767,21]
[343265755,1732536665379,-500.0,0.00039767,21]
[343265756,1732536665389,-500.0,0.00039767,21]
[343265757,1732536665400,-500.0,0.00039767,21]
[343265758,1732536665411,-500.0,0.00039767,21]
[343265759,1732536665421,-500.0,0.00039767,21]
[343265760,1732536665432,-7241.01,0.00039767,21]
[343265761,1732536665443,-1484.3,0.00039767,21]
[343265762,1732536665453,-500.0,0.00039767,21]
[343265763,1732536665463,-656.71,0.00039767,21]
[343265764,1732536665473,-500.0,0.00039767,21]
[343265765,1732536665483,-1219.29,0.00039767,21]
[343265766,1732536665493,-500.0,0.00039767,21]
[343265767,1732536665503,-1044.42,0.00039767,21]
[343265768,1732536665513,-500.0,0.00039767,21]
[343265769,1732536665523,-5313.62,0.00039767,21]
[343265770,1732536665533,-500.0,0.00039767,21]
[343265771,1732536665543,-635.51,0.00039767,21]
[343265772,1732536665553,-1329.57,0.00039767,21]
[343265773,1732536665562,-500.0,0.00039767,21]
[343265774,1732536665572,-500.0,0.00039767,21]
[343265775,1732536665582,-3316.78,0.00039767,21]
[343265776,1732536665593,-500.0,0.00039767,21]
[343265777,1732536665603,-500.0,0.00039767,21]
[343265778,1732536665615,-500.0,0.00039767,21]
[343265779,1732536665626,-500.0,0.00039767,21]
[343265780,1732536665635,-913.11,0.00039767,21]
[343265781,1732536665644,-528.36,0.00039767,21]
[343265782,1732536665655,-1044.85,0.00039767,21]
[343265783,1732536665664,-500.0,0.00039767,21]
[343265784,1732536665674,-500.0,0.00039767,21]
[343265785,1732536665685,-500.0,0.00039767,21]
[343265786,1732536665695,-1961.52,0.00039767,21]
[343265787,1732536665705,-500.0,0.00039767,21]
[343265788,1732536665715,-500.0,0.00039767,21]
[343265789,1732536665725,-500.0,0.00039767,21]
[343265790,1732536665735,-1014.5,0.00039767,21]
[343265791,1732536665745,-1204.64,0.00039767,21]
[343265792,1732536665755,-890.45,0.00039767,21]
[343265793,1732536665765,-500.0,0.00039767,21]
[343265794,1732536665776,-500.0,0.00039767,21]
[343265795,1732536665787,-500.0,0.00039767,21]
[343265796,1732536665796,-416.93,0.00039767,21]
[343265797,1732536665807,-500.0,0.00039767,21]
[343265798,1732536665817,-2806.06,0.00039767,21]
[343265799,1732536665827,-500.0,0.00039767,21]
[343265800,1732536665842,-713.37,0.00039767,21]
[343265801,1732536665852,-2152.31,0.00039767,21]
[343265802,1732536665866,-500.0,0.00039767,21]
[343265803,1732536665876,-2862.22,0.00039767,21]
[343265804,1732536665887,-346.81,0.00039767,21]
[343265805,1732536665897,-500.0,0.00039767,21]
[343265806,1732536665907,-376.77,0.00039767,21]
[343265807,1732536665917,-500.0,0.00039767,21]
[343265808,1732536665927,-500.0,0.00039767,21]
[343265809,1732536665936,-818.24,0.00039767,21]
[343265810,1732536665946,-594.32,0.00039767,21]
[343265811,1732536665955,-502.18,0.00039767,21]
[343265812,1732536665965,-5698.56,0.00039767,21]
[343265813,1732536665975,-2231.16,0.00039767,21]
[343265814,1732536665984,-500.0,0.00039767,21]
[343265815,1732536665993,-500.0,0.00039767,21]
[343265816,1732536666003,-3033.86,0.00039767,21]
[343265817,1732536666012,-500.0,0.00039767,21]
[343265818,1732536666022,-500.0,0.00039767,21]
[343265819,1732536666031,-3000.0,0.000398,14]
[343265820,1732536666041,-500.0,0.00039862,2]
[343265821,1732536666051,-464.0623,0.00039888,7]
[343265822,1732536666062,-997067.06101359,0.000399,10]
[343265823,1732536666072,-3800.0,0.000399,14]
[343265824,1732536666082,-2139.66008587,0.000399,2]
[343265825,1732536666092,-2139.66008582,0.000399,2]
[343265826,1732536666105,-2139.66008582,0.000399,2]
[343265827,1732536666116,-2139.66008582,0.000399,2]
[343265828,1732536666127,-2139.66008582,0.000399,2]
[343265829,1732536666138,-2139.66008582,0.000399,2]
[343265830,1732536666149,-2139.66008582,0.000399,2]
[343265831,1732536666159,-2139.66008582,0.000399,2]
[343265832,1732536666170,-2139.66008582,0.000399,2]
[343265833,1732536666180,-2139.66008582,0.000399,2]
[343265834,1732536666190,-2139.66008582,0.000399,2]
[343265835,1732536666375,-2139.66008582,0.000399,2]
[343265836,1732536666409,-23922.57019685,0.000399,2]
[343265837,1732536666420,-814.50529362,0.000399,2]
[343265838,1732536666429,-2526.03231242,0.00039941,2]
[343265839,1732536666439,-492.85456474,0.00039941,2]
[343265840,1732536666448,-202.29206931,0.00039941,8]
[343265841,1732536666458,-372.11,0.00039999,21]
[343265842,1732536666468,-430.04,0.00039999,21]
[343265843,1732536666478,-500.0,0.00039999,21]
[343265844,1732536666489,-500.0,0.00039999,21]
[343265845,1732536666499,-500.0,0.00039999,21]
[343265846,1732536666508,-300.13,0.00039999,21]
[343265847,1732536666518,-500.0,0.00039999,21]
[343265848,1732536666528,-596.54,0.00039999,21]
[343265849,1732536666538,-500.0,0.00039999,21]
[343265850,1732536666547,-523.73,0.00039999,21]
[343265851,1732536666557,-500.0,0.00039999,21]
[343265852,1732536666567,-615.05,0.00039999,21]
[343265853,1732536666577,-500.0,0.00039999,21]
[343265854,1732536666586,-500.0,0.00039999,21]
[343265855,1732536666596,-2082.25,0.00039999,21]
[343265856,1732536666607,-500.0,0.00039999,21]
[343265857,1732536666617,-500.0,0.00039999,21]
[343265858,1732536666627,-500.0,0.00039999,21]
[343265859,1732536666637,-460.38,0.00039999,21]
[343265860,1732536666646,-500.0,0.00039999,21]
[343265861,1732536666655,-500.0,0.00039999,21]
[343265862,1732536666665,-500.0,0.00039999,21]
[343265863,1732536666674,-500.0,0.00039999,21]
[343265864,1732536666685,-500.0,0.00039999,21]
[343265865,1732536666694,-500.0,0.00039999,21]
[343265866,1732536666703,-563.51,0.00039999,21]
[343265867,1732536666712,-500.0,0.00039999,21]
[343265868,1732536666721,-500.0,0.00039999,21]
[343265869,1732536666731,-648.22,0.00039999,21]
[343265870,1732536666741,-434.87,0.00039999,21]
[343265871,1732536666750,-500.0,0.00039999,21]
[343265872,1732536666760,-500.0,0.00039999,21]
[343265873,1732536666770,-500.0,0.00039999,21]
[343265874,1732536666780,-519.6,0.00039999,21]
[343265875,1732536666790,-500.0,0.00039999,21]
[343265876,1732536666799,-500.0,0.00039999,21]
[343265877,1732536666808,-1204.4,0.00039999,21]
[343265878,1732536666818,-500.0,0.00039999,21]
[343265879,1732536666826,-418.17,0.00039999,21]
[343265880,1732536666835,-500.0,0.00039999,21]
[343265881,1732536666845,-500.0,0.00039999,21]
[343265882,1732536666854,-500.0,0.00039999,21]
[343265883,1732536666865,-500.0,0.00039999,21]
[343265884,1732536666875,-181.43,0.00039999,21]
[343265885,1732536666884,-500.0,0.00039999,21]
[343265886,1732536666893,-428.56,0.00039999,21]
[343265887,1732536666902,-500.0,0.00039999,21]
[343265888,1732536666911,-500.0,0.00039999,21]
[343265889,1732536666921,-500.0,0.00039999,21]
[343265890,1732536666931,-500.0,0.00039999,21]
[343265891,1732536666940,-500.0,0.00039999,21]
[343265892,1732536666949,-500.0,0.00039999,21]
[343265893,1732536666958,-500.0,0.00039999,21]
[343265894,1732536666967,-634.92,0.00039999,21]
[343265895,1732536666977,-500.0,0.00039999,21]
[343265896,1732536666987,-508.83,0.00039999,21]
[343265897,1732536666996,-500.0,0.00039999,7]
[343265898,1732536667006,-500.0,0.00039999,21]
[343265899,1732536667016,-500.0,0.00039999,21]
[343265900,1732536667025,-500.0,0.00039999,21]
[343265901,1732536667035,-500.0,0.00039999,21]
[343265902,1732536667044,-500.0,0.00039999,21]
[343265903,1732536667054,-817.33,0.00039999,21]
[343265904,1732536667064,-500.0,0.00039999,21]
[343265905,1732536667074,-674.77,0.00039999,2]
[343265906,1732536667083,-5549.98,0.00039999,21]
[343265907,1732536667093,-435.46,0.00039999,21]
[343265908,1732536667109,-500.0,0.00039999,21]
[343265909,1732536667119,-500.0,0.00039999,21]
[343265910,1732536667129,-500.0,0.00039999,21]
[343265911,1732536667138,-574.77,0.00039999,21]
[343265912,1732536667148,-500.0,0.00039999,21]
[343265913,1732536667158,-571.22,0.00039999,21]
[343265914,1732536667169,-685.58,0.00039999,21]
[343265915,1732536667180,-500.0,0.00039999,21]
[343265916,1732536667190,-500.0,0.00039999,21]
[343265917,1732536667200,-500.0,0.00039999,21]
[343265918,1732536667209,-500.0,0.00039999,21]
[343265919,1732536667219,-500.0,0.00039999,21]
[343265920,1732536667229,-1000.0,0.00039999,2]
[343265921,1732536667239,-702.08,0.00039999,21]
[343265922,1732536667249,-500.0,0.00039999,21]
[343265923,1732536667259,-408.65677041,0.00039999,21]
[343265924,1732536667270,-500.0,0.00039999,21]
[343265925,1732536667280,-500.0,0.00039999,21]
[343265926,1732536667290,-243.64196404,0.00039999,21]
[343265927,1732536667300,-500.0,0.00039999,21]
[343265928,1732536667310,-2182.69,0.00039999,21]
[343265929,1732536667319,-500.0,0.00039999,21]
[343265930,1732536667329,-500.0,0.00039999,21]
[343265931,1732536667339,-500.0,0.00039999,21]
[343265932,1732536667349,-2349.99410867,0.0004,2]
[343265933,1732536667361,-20000.0,0.0004,60]
[343265934,1732536667370,-500.0,0.0004,21]
[343265935,1732536667380,-200.52127815,0.0004,21]
[343265936,1732536667389,-500.0,0.0004,21]
[343265937,1732536667399,-194.1,0.0004,21]
[343265938,1732536667408,-500.0,0.0004,21]
[343265939,1732536667418,-500.0,0.0004,21]
[343265940,1732536667427,-500.0,0.0004,21]
[343265941,1732536667436,-523.42,0.0004,21]
[343265942,1732536667446,-500.0,0.0004,21]
[343265943,1732536667455,-500.0,0.0004,21]
[343265944,1732536667464,-237.24170908,0.0004,21]
[343265945,1732536667473,-675.2,0.0004,21]
[343265946,1732536667483,-500.0,0.0004,21]
[343265947,1732536667492,-1143.4,0.0004,21]
[343265948,1732536667501,-553.02,0.0004,21]
[343265949,1732536667511,-500.0,0.0004,21]
[343265950,1732536667521,-500.0,0.0004,21]
[343265951,1732536667531,-660.04,0.0004,21]
[343265952,1732536667540,-500.0,0.0004,21]
[343265953,1732536667549,-500.0,0.0004,21]
[343265954,1732536667558,-500.0,0.0004,21]
[343265955,1732536667567,-550.37,0.0004,21]
[343265956,1732536667576,-500.0,0.0004,120]
[343265957,1732536667586,-500.0,0.0004,21]
[343265958,1732536667596,-915.74,0.0004,21]
[343265959,1732536667608,-500.0,0.0004,21]
[343265960,1732536667617,-529.4,0.0004,21]
[343265961,1732536667627,-500.0,0.0004,21]
[343265962,1732536667636,-500.0,0.0004,21]
[343265963,1732536667645,-500.0,0.0004,21]
[343265964,1732536667655,-661.32,0.0004,21]
[343265965,1732536667664,-592.89,0.0004,21]
[343265966,1732536667673,-500.0,0.0004,21]
[343265967,1732536667682,-397.41,0.0004,21]
[343265968,1732536667692,-500.0,0.0004,21]
[343265969,1732536667702,-500.0,0.0004,21]
[343265970,1732536667711,-501.9,0.0004,21]
[343265971,1732536667721,-500.0,0.0004,21]
[343265972,1732536667730,-500.0,0.0004,21]
[343265973,1732536667743,-890.91,0.0004,21]
[343265974,1732536667754,-275.36,0.0004,21]
[343265975,1732536667763,-500.0,0.0004,21]
[343265976,1732536667773,-500.0,0.0004,21]
[343265977,1732536667782,-176.81,0.0004,21]
[343265978,1732536667792,-500.0,0.0004,21]
[343265979,1732536667801,-500.0,0.0004,21]
[343265980,1732536667810,-500.0,0.0004,21]
[343265981,1732536667819,-500.0,0.0004,21]
[343265982,1732536667829,-500.0,0.0004,21]
[343265983,1732536667839,-903.22,0.0004,21]
[343265984,1732536667848,-500.0,0.0004,21]
[343265985,1732536667857,-500.0,0.0004,21]
[343265986,1732536667867,-500.0,0.0004,21]
[343265987,1732536667876,-500.0,0.0004,21]
[343265988,1732536667886,-500.0,0.0004,21]
[343265989,1732536667895,-500.0,0.0004,21]
[343265990,1732536667904,-309.58,0.0004,21]
[343265991,1732536667913,-783.23,0.0004,21]
[343265992,1732536667923,-500.0,0.0004,21]
[343265993,1732536667933,-500.0,0.0004,21]
[343265994,1732536667942,-500.0,0.0004,21]
[343265995,1732536667951,-500.0,0.0004,21]
[343265996,1732536667960,-500.0,0.0004,21]
[343265997,1732536667970,-46471.0026,0.0004,2]
[343265998,1732536667980,-500.0,0.0004,21]
[343265999,1732536667989,-500.0,0.0004,21]
[343266000,1732536667999,-1024.03,0.0004,21]
[343266001,1732536668008,-500.0,0.0004,21]
[343266002,1732536668018,-500.0,0.0004,21]
[343266003,1732536668027,-500.0,0.0004,21]
[343266004,1732536668037,-500.0,0.0004,21]
[343266005,1732536668046,-500.0,0.0004,21]
[343266006,1732536668055,-500.0,0.0004,21]
[343266007,1732536668065,-2874.42,0.0004,21]
[343266008,1732536668075,-2000.0,0.0004,2]
[343266009,1732536668084,-775.26,0.0004,21]
[343266010,1732536668094,-500.0,0.0004,21]
[343266011,1732536668110,-552.41,0.0004,21]
[343266012,1732536668120,-500.0,0.0004,21]
[343266013,1732536668129,-3082.64,0.0004,21]
[343266014,1732536668140,-500.0,0.0004,21]
[343266015,1732536668150,-500.0,0.0004,21]
[343266016,1732536668160,-689.26,0.0004,21]
[343266017,1732536668170,-739.61,0.0004,21]
[343266018,1732536668181,-500.0,0.0004,21]
[343266019,1732536668191,-500.0,0.0004,21]
[343266020,1732536668200,-3431.21,0.0004,21]
[343266021,1732536668211,-535.48,0.0004,21]
[343266022,1732536668221,-2326.47,0.0004,21]
[343266023,1732536668231,-939.05,0.0004,21]
[343266024,1732536668240,-8053.63,0.0004,21]
[343266025,1732536668250,-576.02,0.0004,21]
[343266026,1732536668259,-8604.27,0.0004,21]
[343266027,1732536668268,-659.22,0.0004,21]
[343266028,1732536668277,-500.0,0.0004,21]
[343266029,1732536668286,-500.0,0.0004,21]
[343266030,1732536668295,-897.77,0.0004,21]
[343266031,1732536668305,-224.05747932,0.0004,21]
[343266032,1732536668314,-500.0,0.0004,21]
[343266033,1732536668323,-500.0,0.0004,21]
[343266034,1732536668332,-500.0,0.0004,21]
[343266035,1732536668341,-500.0,0.0004,21]
[343266036,1732536668350,-500.0,0.0004,21]
[343266037,1732536668361,-500.0,0.0004,21]
[343266038,1732536668371,-500.0,0.0004,21]
[343266039,1732536668380,-747.44,0.0004,21]
[343266040,1732536668389,-1247.78,0.0004,21]
[343266041,1732536668399,-726.59,0.0004,21]
[343266042,1732536668408,-1129.77,0.0004,21]
[343266043,1732536668417,-963.68,0.0004,21]
[343266044,1732536668426,-412.12,0.0004,21]
[343266045,1732536668438,-500.0,0.0004,21]
[343266046,1732536668447,-3123.05,0.0004,21]
[343266047,1732536668457,-500.0,0.0004,21]
[343266048,1732536668466,-500.0,0.0004,21]
[343266049,1732536668475,-547.96,0.0004,21]
[343266050,1732536668485,-589.49,0.0004,21]
[343266051,1732536668495,-727.18,0.0004,21]
[343266052,1732536668503,-8008.7,0.0004,21]
[343266053,1732536668513,-500.0,0.0004,21]
[343266054,1732536668522,-500.0,0.0004,21]
[343266055,1732536668531,-913.31,0.0004,21]
[343266056,1732536668541,-500.0,0.0004,21]
[343266057,1732536668550,-1042.25,0.0004,21]
[343266058,1732536668560,-1103.1,0.0004,21]
[343266059,1732536668569,-500.0,0.0004,21]
[343266060,1732536668578,-500.0,0.0004,21]
[343266061,1732536668587,-500.0,0.0004,21]
[343266062,1732536668598,-525.44,0.0004,21]
[343266063,1732536668608,-500.0,0.0004,21]
[343266064,1732536668617,-714.29,0.0004,21]
[343266065,1732536668626,-1098.83,0.0004,21]
[343266066,1732536668636,-599.99,0.0004,21]
[343266067,1732536668645,-500.0,0.0004,21]
[343266068,1732536668654,-536.64,0.0004,21]
[343266069,1732536668663,-500.0,0.0004,21]
[343266070,1732536668672,-500.0,0.0004,21]
[343266071,1732536668736,-3141.32,0.0004,21]
[343266072,1732536668747,-500.0,0.0004,21]
[343266073,1732536668756,-500.0,0.0004,21]
[343266074,1732536668765,-1749.61,0.0004,21]
[343266075,1732536668774,-520.31,0.0004,21]
[343266076,1732536668784,-3086.47,0.0004,21]
[343266077,1732536668793,-999.78,0.0004,21]
[343266078,1732536668802,-500.0,0.0004,21]
[343266079,1732536668811,-516.76,0.0004,21]
[343266080,1732536668821,-1600.0,0.0004,2]
[343266081,1732536668830,-599.84,0.0004,21]
[343266082,1732536668840,-151.0,0.0004,14]
[343266083,1732536668850,-500.0,0.0004,21]
[343266084,1732536668860,-500.0,0.0004,21]
[343266085,1732536668870,-843.37,0.0004,21]
[343266086,1732536668879,-897.11,0.0004,21]
[343266087,1732536668888,-500.0,0.0004,21]
[343266088,1732536668898,-1516.6,0.0004,21]
[343266089,1732536668907,-151.0,0.0004,14]
[343266090,1732536668916,-151.0,0.0004,14]
[343266091,1732536668925,-4321.07,0.0004,21]
[343266092,1732536668935,-151.0,0.0004,14]
[343266093,1732536668944,-500.0,0.0004,21]
[343266094,1732536668954,-1501.72,0.0004,21]
[343266095,1732536668964,-500.0,0.0004,21]
[343266096,1732536668973,-3276.7,0.0004,21]
[343266097,1732536668982,-21441.79,0.0004,21]
[343266098,1732536668992,-500.0,0.0004,21]
[343266099,1732536669002,-500.0,0.0004,21]
[343266100,1732536669011,-2334.22,0.0004,21]
[343266101,1732536669021,-1941.42,0.0004,21]
[343266102,1732536669031,-500.0,0.0004,21]
[343266103,1732536669041,-151.0,0.0004,14]
[343266104,1732536669050,-320.18404299,0.0004,21]
[343266105,1732536669059,-500.0,0.0004,21]
[343266106,1732536669069,-1034.74,0.0004,21]
[343266107,1732536669078,-548.14,0.0004,21]
[343266108,1732536669087,-500.0,0.0004,21]
[343266109,1732536669097,-1055.46,0.0004,21]
[343266110,1732536669110,-204.0,0.0004004,2]
[343266111,1732536669119,-574.77,0.0004004,21]
[343266112,1732536669128,-500.0,0.00040041,21]
[343266113,1732536669138,-500.0,0.00040041,21]
[343266114,1732536669149,-500.0,0.00040041,21]
[343266115,1732536669159,-243.08,0.00040041,21]
[343266116,1732536669168,-239.6,0.00040041,21]
[343266117,1732536669181,-156.98501268,0.00040041,21]
[343266118,1732536669190,-500.0,0.00040041,21]
[343266119,1732536669200,-627.79,0.00040041,21]
[343266120,1732536669210,-500.0,0.00040041,21]
[343266121,1732536669219,-181.97,0.00040041,21]
[343266122,1732536669228,-500.0,0.00040041,21]
[343266123,1732536669238,-500.0,0.00040041,21]
[343266124,1732536669247,-156.38,0.00040041,21]
[343266125,1732536669256,-228.76,0.00040041,21]
[343266126,1732536669266,-500.0,0.00040041,21]
[343266127,1732536669275,-771.52,0.00040041,21]
[343266128,1732536669285,-500.0,0.00040041,21]
[343266129,1732536669294,-500.0,0.00040041,21]
[343266130,1732536669303,-500.0,0.00040041,21]
[343266131,1732536669312,-500.0,0.00040041,21]
[343266132,1732536669321,-500.0,0.00040041,21]
[343266133,1732536669330,-500.0,0.00040041,21]
[343266134,1732536669339,-500.0,0.00040041,21]
[343266135,1732536669348,-500.0,0.00040041,21]
[343266136,1732536669358,-500.0,0.00040041,21]
[343266137,1732536669368,-500.0,0.00040041,21]
[343266138,1732536669378,-500.0,0.00040041,21]
[343266139,1732536669388,-500.0,0.00040041,21]
[343266140,1732536669397,-500.0,0.00040041,21]
[343266141,1732536669407,-658.45,0.00040041,21]
[343266142,1732536669416,-1976.25,0.00040041,21]
[343266143,1732536669426,-500.0,0.00040041,21]
[343266144,1732536669435,-500.0,0.00040041,21]
[343266145,1732536669445,-500.0,0.00040041,21]
[343266146,1732536669454,-500.0,0.00040041,21]
[343266147,1732536669463,-500.0,0.00040041,21]
[343266148,1732536669473,-876.13,0.00040041,21]
[343266149,1732536669483,-500.0,0.00040041,21]
[343266150,1732536669492,-514.52,0.00040041,21]
[343266151,1732536669501,-500.0,0.00040041,21]
[343266152,1732536669510,-500.0,0.00040041,21]
[343266153,1732536669521,-500.0,0.00040041,21]
[343266154,1732536669530,-500.0,0.00040041,21]
[343266155,1732536669539,-500.0,0.00040041,21]
[343266156,1732536669549,-500.0,0.00040041,21]
[343266157,1732536669559,-500.0,0.00040041,21]
[343266158,1732536669570,-500.0,0.00040041,21]
[343266159,1732536669579,-500.0,0.00040041,21]
[343266160,1732536669589,-500.0,0.00040041,21]
[343266161,1732536669598,-7241.01,0.00040041,21]
[343266162,1732536669608,-1484.3,0.00040041,21]
[343266163,1732536669617,-500.0,0.00040041,21]
[343266164,1732536669627,-656.71,0.00040041,21]
[343266165,1732536669636,-500.0,0.00040041,21]
[343266166,1732536669645,-1219.29,0.00040041,21]
[343266167,1732536669655,-500.0,0.00040041,21]
[343266168,1732536669664,-1044.42,0.00040041,21]
[343266169,1732536669674,-500.0,0.00040041,21]
[343266170,1732536669683,-5313.62,0.00040041,21]
[343266171,1732536669693,-500.0,0.00040041,21]